{"text_format":"3","workbook":"xlsx","n_sheets":1,"sheets":["PRICING SCHEDULE"],"not_rendered":{"images":1,"defined_names":2},"read":"whole","date_system":"1900"}

{"sheet":"PRICING SCHEDULE","index":0,"n_rows":66,"n_cols":8,"rows_kept":66,"merged":[[13,1,13,3],[14,1,14,3],[14,5,16,5],[15,1,15,3],[16,1,16,3],[57,0,57,4],[58,0,58,4],[59,0,59,4],[62,1,65,1],[62,2,62,4],[63,2,63,4],[64,2,64,4],[65,2,65,4]]}
[null,"SUPPLY CHAIN MANAGEMENT"]
[null,"Pricing schedule"]
["RFB  No","RFB 3227- 2025/ ERP Number 205012"]
["RFB Title","REQUEST FOR BID FOR THE APPOINTMENT OF A SERVICE PROVIDER FOR THE SUPPLY AND INSTALLATION OF SPLIT AIR CONDITIONING UNITS AT X 17 SAPS SITES ON BEHALF OF THE SOUTH AFRICAN POLICE SERVICES (SAPS), GAUTENG"]
["Bidder Name "]
[]
["1. INSTRUCTION FOR COMPLETING THE PRICING SCHEDULE"]
["(a)  Bidder must complete/enter YELLOW cells only"]
["(b)  Unit and Line prices must be VAT EXCLUSIVE and in South African Rand (ZAR) currency."]
["(c) The price must include all cost to deliver the goods or render the service, including all applicable taxes, duty fees, logistics/delivery, storage, labour, overtime and subsistence and travel"]
["(d) No Maintenance or Services for Cooling Systems now quoted for and to be installed. "]
["(e) Bidders must complete and submit bid pricing in the provided Excel spreadsheet format, and any pricing schedule submitted in a different format will not be considered."]
[]
["Foreign currency","South African Rand (ZAR) exchange rate "]
["1 US Dollar",{"v":16.9,"d":"R16.90"},{"$nulls":3},"Mark with an X, which ROE is applicable"]
["1 Euro",{"v":22.5,"d":"R22.50"}]
["1 Pound (UK)",{"v":19.43,"d":"R19.43"}]
[]
[{"$nulls":5},"TOTAL"]
["Item No","Goods/Service description","Unit of measure","Qty ","Unit Cost","Line Price Term \n(Excel VAT)","BRAND / MODEL","Price clarification comment"]
[]
[1,"Air Conditioning Units 18000 split unit BTU aircon\nThe unit rate including aircon units, labour, material, spares, tools, accessories and consumables., and provide the specified report. The Rate must include the specified service pack, and to perform the specified services.",{"$nulls":3},{"$f":"+SUBTOTAL(9,F23:F27)","v":0}]
["1.1","Supply and Installation of 18000 split unit BTU aircon complete with evaporator, condensor and mounting brackets","Each",14,0,{"$f":"+E23*D23","v":0}]
["1.2","Condensor Copper piping with insulation and mounting brackets","m",200,0,{"$f":"+E24*D24","v":0}]
["1.3","Cage to protect the outdoor condenser","Each",14,0,{"$f":"+E25*D25","v":0}]
["1.4","Padlocks with and at least 2 keys universal keys","Each",14,0,0]
["1.5","Drip tray underneath indoor unit","Each",14,0,0]
[1,"Air Conditioning Units 12000 split unit BTU aircon\nThe unit rate including aircon units, labour, material, spares, tools, accessories and consumables., and provide the specified report. The Rate must include the specified service pack, and to perform the specified services.",{"$nulls":3},{"$f":"+SUBTOTAL(9,F29:F33)","v":0}]
["1.1","Supply and Installation of 12000 split unit BTU aircon complete with evaporator, condensor and mounting brackets","Each",4,0,{"$f":"+E29*D29","v":0}]
["1.2","Condensor Copper piping with insulation and mounting brackets","m",50,0,{"$f":"+E30*D30","v":0}]
["1.3","Cage to protect the outdoor condenser","Each",4,0,0]
["1.4","Padlocks with and at least 2 keys universal keys","Each",4,0,0]
["1.5","Drip tray underneath indoor unit","Each",4,0,0]
[2,"Electrical",{"$nulls":3},{"$f":"+SUBTOTAL(9,F35:F42)","v":0}]
["2.1","6mm2 LV Cable: HO7 RN-F Flexible Trailing Cable 3 Core","metre",200,0,{"$f":"E35*D35","v":0}]
["2.3","Small 12-way surface mount DB board with Isolator with DB blanks","Each",17,0,{"$f":"+E36*D36","v":0}]
["2.4","Circuit Breaker 32 Amp, 6KA CBI","Each",17,0,0]
["2.5","32a double pole circuit breaker/Isolator.","Each",17,0,0]
["2.6","Earth leakage 63Amp","Each",17,0,0]
["2.7","32 Amp Circuit breaker","Each",17,0,0]
["2.8","32 Amp Isolator circuit supply to aircon","Each",17,0,0]
["2.9","COC Electrical certificates","Each",17,0,0]
[3,"Infrastructure",{"$nulls":3},{"$f":"+SUBTOTAL(9,F44:F46)","v":0}]
["3.1","32mm bosal pipe including bends and accessories.","m",200,0,{"$f":"+E44*D44","v":0}]
["3.2","Ega trunking","m",200,0,0]
["3.3","P9000 galvanized channeling for Aircon pipes","m",200,0,0]
[4,"UNIT RATES: LABOUR\nNote that the quantities indicated below are only for evaluation purposes and to determine the contract unit rates. The final quantities will be based on works orders.",{"$nulls":3},{"$f":"SUBTOTAL(9, F48:F53)","v":0}]
[4.1,"SkilledLabour","Unit rate per hour",120,0,{"$f":"E48*D48","v":0}]
[4.2,"Unskilled labourers","Unit rate per hour",120,0,0]
[4.3,"Semi - skilled labourers","Unit rate per hour",120,0,0]
[4.4,"HVAC Artisian","Unit rate per hour",120,0,{"$f":"E51*D51","v":0}]
[4.5,"Electrician","Unit rate per hour",80,0,0]
[4.6,"Project Manager","Unit rate per hour",160,0,0]
[5,"SCAFFOLD PLANT UNIT RATES: \nNote that the quantities indicated below are only for evaluation purposes and to determine the contract unit rates. The final quantities will be based on works orders ",{"$nulls":3},{"$f":"SUBTOTAL(9, F55)","v":0}]
["5.1","Plant","Unit rate per day",40,0,{"$f":"E55*D55","v":0}]
[6,"TRANSPORT UNIT RATES\nNote that the quantities indicated below are only for evaluation purposes and to determine the contract unit rates. The final quantities will be based on works orders",{"$nulls":3},{"$f":"SUBTOTAL(9, F57)","v":0}]
["6.1","Transport - specify ","Unit rate per km",3000,0,{"$f":"E57*D57","v":0}]
["TOTAL BID PRICE  (EXCL VAT)",{"$nulls":4},{"$f":"+SUBTOTAL(9,F22:F57)","v":0}]
["VAT (@15%)",{"$nulls":4},{"$f":"F58*0.15","v":0}]
["TOTAL  BID PRICE (INCL VAT)",{"$nulls":4},{"$f":"F58+F59","v":0}]
[]
[]
[null,"I, the bidder, confirm that the price(s) and rate(s) quoted cover all the goods and/or works specified in the bidding documents; that the price(s) or rate(s) cover all my obligations and I accept that any mistakes regarding price(s), rate(s) or calculations will be at my own risk.\n[Note: First convert to PDF, then add signature]"]
[null,null,"Name"]
[]
[null,null,"Signature (above)"]